bitfinex/quotes_SOLUSD_20250201
["timestamp","ask_amount","ask_price","bid_price","bid_amount"]
[1738373713434,13.41184853,233.98,233.9,0.063]
[1738373713621,13.8401795,233.98,233.9,0.063]
[1738373714020,1.6406,233.93,233.9,0.063]
[1738373717931,13.41184853,233.92,233.9,0.063]
[1738373720044,1.6706,233.93,233.9,0.063]
[1738373720260,1.6706,233.93,233.9,6.83633777]
[1738373720437,1.6706,233.93,233.9,0.063]
[1738373720747,1.6706,233.93,233.91,6.77333777]
[1738373720953,1.6706,233.93,233.92,6.77333777]
[1738373721144,0.03,233.93,233.92,6.77333777]
[1738373723260,0.03,233.93,233.92,11.04823777]
[1738373724163,0.03,233.93,233.92,6.77333777]
[1738373727043,0.03,233.93,233.92,11.04823777]
[1738373730855,0.03,233.93,233.92,6.77333777]
[1738373731233,0.03,233.93,233.92,11.04823777]
[1738373736964,0.03,233.93,233.92,6.77333777]
[1738373767306,0.03,233.93,233.91,6.77333777]
[1738373767690,0.03,233.93,233.9,0.063]
[1738373769116,0.03,233.93,233.92,6.77333777]
[1738373771287,0.03,233.93,233.92,12.04823777]
[1738373771486,0.03,234.01,233.92,12.68929233]
[1738373771788,0.03,234.01,233.98,6.77333777]
[1738373772297,0.03,234.01,233.98,7.41420112]
[1738373774013,0.03,234.01,234.0,21.0]
[1738373774201,0.03,234.11,234.1,6.77333777]
[1738373775406,0.03,234.11,234.08,6.77333777]
[1738373776912,0.03,234.11,234.07,6.77333777]
[1738373777123,0.03,234.11,234.06,6.77333777]
[1738373778020,0.03,234.11,234.05,6.77333777]
[1738373778520,0.03,234.11,234.03,6.77333777]
[1738373779217,0.03,234.11,234.04,6.77333777]
[1738373781117,0.03,234.11,233.95,6.77333777]
[1738373781118,13.41184853,234.07,233.95,6.77333777]
[1738373781417,13.41184853,234.07,233.91,2.86]
[1738373781418,1.5155,234.04,233.93,6.77333777]
[1738373781621,1.94383097,234.04,233.93,6.77333777]
[1738373781789,1.94383097,234.04,233.91,2.86]
[1738373781790,1.5155,234.04,234.03,6.77333777]
[1738373783308,8.0465,234.1,234.03,6.77333777]
[1738373783508,8.0465,234.1,234.06,6.77333777]
[1738373785224,1.5646,234.1,234.06,6.77333777]
[1738373788228,1.5646,234.1,234.08,6.77333777]
[1738373789254,19.87104853,234.16,234.08,6.77333777]
[1738373789410,7.9741,234.16,234.1,6.77333777]
[1738373789827,7.9741,234.16,234.08,6.77333777]
[1738373800041,7.9741,234.16,234.1,6.77333777]
[1738373805534,1.5149,234.16,234.1,6.77333777]
[1738373807343,1.5149,234.16,234.08,6.77333777]
[1738373810750,7.5825,234.16,234.08,6.77333777]
[1738373812236,7.5825,234.16,234.1,6.77333777]
[1738373814028,1.5149,234.16,234.1,6.77333777]
[1738373816632,1.5149,234.16,234.1,11.04493777]
[1738373817135,1.5149,234.16,234.1,6.77333777]
[1738373818423,1.5149,234.16,234.1,11.04493777]
[1738373820742,1.5149,234.16,234.1,6.77333777]
[1738373823040,0.03,234.17,234.1,39.77881574]
[1738373823253,0.03,234.17,234.15,6.77333777]
[1738373823428,0.03,234.17,234.15,0.64032445]
[1738373823633,1.5659,234.16,234.08,6.77333777]
[1738373824154,1.5659,234.16,234.1,6.77333777]
[1738373824329,1.5659,234.16,234.14,6.77333777]
[1738373827145,1.5659,234.16,234.12,6.77333777]
[1738373829361,1.5659,234.16,234.14,6.77333777]
[1738373829859,0.03,234.17,234.14,6.77333777]
[1738373830067,0.03,234.17,234.16,6.77333777]
[1738373832179,0.03,234.17,234.14,6.77333777]
[1738373832376,0.03,234.17,234.12,6.77333777]
[1738373836457,0.03,234.17,234.11,2.86]
[1738373837262,13.44184853,234.17,234.11,2.86]
[1738373839573,1.6494,234.16,234.11,2.86]
[1738373839984,1.6494,234.16,234.1,0.063]
[1738373841978,1.6494,234.16,234.13,6.77333777]
[1738373842207,1.6494,234.16,234.11,6.77333777]
[1738373843688,1.6494,234.16,234.1,0.063]
[1738373845388,1.6494,234.16,234.11,6.77333777]
[1738373847487,1.6494,234.16,234.11,6.83633777]
[1738373847991,1.6494,234.16,234.11,0.063]
[1738373856606,13.8401795,234.15,234.11,0.063]
[1738373863103,13.41184853,234.11,233.98,6.77333777]
[1738373863290,14.95044853,234.09,233.96,6.77333777]
[1738373863598,0.42833097,234.08,233.96,6.77333777]
[1738373864724,0.42833097,234.08,233.98,6.77333777]
[1738373865575,14.95044853,234.09,233.98,6.77333777]
[1738373866414,0.42833097,234.08,233.98,6.77333777]
[1738373867209,14.95044853,234.09,233.98,6.77333777]
[1738373868107,0.42833097,234.08,233.98,6.77333777]
[1738373869323,14.95044853,234.09,233.98,6.77333777]
[1738373870323,14.95044853,234.09,234.0,6.77333777]
[1738373871531,14.95044853,234.09,234.02,6.77333777]
[1738373871699,14.95044853,234.09,234.04,6.77333777]
[1738373871700,1.5386,234.09,234.04,6.77333777]
[1738373871900,1.5386,234.09,234.07,6.77333777]
[1738373873831,1.5386,234.09,234.06,6.77333777]
[1738373874003,1.5386,234.09,234.05,6.77333777]
[1738373876310,1.5386,234.09,234.06,6.77333777]
[1738373878430,0.03,234.1,234.06,6.77333777]
[1738373880233,0.03,234.1,234.01,4.3361]
[1738373880428,0.03,234.1,234.01,6.83633777]
[1738373880619,13.44184853,234.1,234.01,0.063]
[1738373880930,14.93224853,234.08,234.01,0.063]
[1738373881135,13.41184853,234.06,234.01,0.063]
[1738373881333,1.5204,234.08,234.01,0.063]
[1738373882535,1.5204,234.08,234.03,6.77333777]
[1738373882717,1.5204,234.08,234.05,6.77333777]
[1738373882913,1.5204,234.08,234.03,6.77333777]
[1738373891744,1.5204,234.08,234.01,6.83633777]
[1738373891930,13.41184853,234.07,234.01,0.063]
[1738373893324,13.41184853,234.05,234.01,0.063]
[1738373894345,13.41184853,234.07,234.01,0.063]
[1738373895456,13.41184853,234.05,234.01,0.063]
[1738373896348,13.41184853,234.07,234.01,0.063]
[1738373896551,13.41184853,234.05,234.01,0.063]
[1738373897434,13.41184853,234.07,234.01,0.063]
[1738373897634,13.41184853,234.05,234.01,0.063]
[1738373898518,13.41184853,234.07,234.01,0.063]
[1738373898746,13.41184853,234.05,234.01,0.063]
[1738373899644,13.41184853,234.07,234.01,0.063]
[1738373899838,0.42833097,234.06,234.01,0.063]
[1738373901444,13.41184853,234.05,234.01,0.063]
[1738373901632,13.41184853,234.03,234.01,0.063]
[1738373901834,2.09113097,234.02,234.01,0.063]
[1738373902547,1.6628,234.02,234.01,0.063]
[1738373905054,15.07464853,234.02,234.01,0.063]
[1738373915382,15.5029795,234.02,234.01,0.063]
[1738373918015,1.0,233.98,233.9,0.063]
[1738373918317,14.41184853,233.95,233.87,0.063]
[1738373918483,19.98594853,233.93,233.87,0.063]
[1738373918690,13.41184853,233.91,233.87,0.063]
[1738373918994,0.42833097,233.9,233.87,0.063]
[1738373919783,13.41184853,233.91,233.87,0.063]
[1738373919784,0.42833097,233.92,233.87,0.063]
[1738373921192,13.41184853,233.91,233.87,0.063]
[1738373925816,13.41184853,233.89,233.87,0.063]
[1738373925998,0.42833097,233.88,233.87,0.063]
[1738373926398,13.41184853,233.91,233.87,0.063]
[1738373926608,13.41184853,233.89,233.87,0.063]
[1738373926798,0.42833097,233.88,233.87,0.063]
[1738373927515,13.41184853,233.91,233.87,0.063]
[1738373927721,13.41184853,233.89,233.87,0.063]
[1738373928019,0.42833097,233.92,233.87,0.063]
[1738373928528,13.41184853,233.91,233.87,0.063]
[1738373931109,13.41184853,233.89,233.87,0.063]
[1738373931499,2.05593097,233.88,233.87,0.063]
[1738373931717,3.05593097,233.88,233.87,0.063]
[1738373931917,16.4677795,233.88,233.87,0.063]
[1738373932518,15.4677795,233.88,233.87,0.063]
[1738373944713,17.4677795,233.88,233.87,0.063]
[1738373944918,15.4677795,233.88,233.87,0.063]
[1738373945735,16.4677795,233.88,233.87,0.063]
[1738373946229,15.4677795,233.88,233.87,0.063]
[1738373947324,16.4677795,233.88,233.87,0.063]
[1738373947829,17.4677795,233.88,233.87,0.063]
[1738373951043,13.41184853,233.87,233.86,0.063]
[1738373951833,1.0,233.8,233.77,0.063]
[1738373952150,13.8401795,233.79,233.77,0.063]
[1738373952835,15.4525795,233.79,233.77,0.063]
[1738373960012,14.41184853,233.78,233.77,0.063]
[1738373960733,1.0,233.76,233.66,0.063]
[1738373960932,13.41184853,233.73,233.66,0.063]
[1738373961131,13.41184853,233.71,233.66,0.063]
[1738373961332,0.42833097,233.7,233.66,0.063]
[1738373961533,13.41184853,233.69,233.66,0.063]
[1738373962041,13.41184853,233.73,233.66,0.063]
[1738373962227,13.41184853,233.71,233.66,0.063]
[1738373962428,13.41184853,233.69,233.66,0.063]
[1738373963238,13.41184853,233.73,233.66,0.063]
[1738373963432,13.41184853,233.71,233.66,0.063]
[1738373963744,0.42833097,233.77,233.67,6.77333777]
[1738373964242,13.41184853,233.76,233.66,6.83633777]
[1738373964446,0.42833097,233.75,233.66,6.83633777]
[1738373967443,0.42833097,233.75,233.63,10.3726]
[1738373967444,0.42833097,233.75,233.64,4.28]
[1738373967740,0.42833097,233.78,233.68,6.77333777]
[1738373967919,0.03,233.8,233.71,6.77333777]
[1738373968452,0.03,233.8,233.71,6.27333777]
[1738373968657,0.45833097,233.8,233.71,6.27333777]
[1738373969135,13.41184853,233.79,233.71,5.77333777]
[1738373969722,0.03,233.8,233.72,6.77333777]
[1738373972954,0.03,233.8,233.74,6.77333777]
[1738373973149,0.03,233.8,233.76,6.77333777]
[1738373973827,0.03,233.8,233.74,6.77333777]
[1738373975141,0.03,233.8,233.73,6.3911]
[1738373977745,0.03,233.8,233.74,6.77333777]
[1738373977933,0.03,233.8,233.76,6.77333777]
[1738373980356,0.03,233.8,233.78,6.77333777]
[1738373980740,0.03,233.8,233.77,6.77333777]
[1738373980931,0.03,233.8,233.76,6.77333777]
[1738373982522,0.03,233.8,233.77,6.77333777]
[1738373987347,0.03,233.8,233.79,6.77333777]
[1738373988631,0.03,233.8,233.79,11.05063777]
[1738373989033,0.03,233.8,233.79,6.77333777]
[1738373989238,0.03,233.8,233.77,6.77333777]
[1738373991560,0.03,233.8,233.76,6.77333777]
[1738373992133,0.03,233.8,233.78,6.77333777]
[1738373998144,0.03,233.8,233.78,11.05083777]
[1738374000374,0.03,233.8,233.79,4.91861585]
[1738374000585,0.03,233.91,233.89,6.77333777]
[1738374000760,0.03,233.91,233.85,6.77333777]
[1738374001344,0.03,233.91,233.87,6.77333777]
[1738374002872,0.03,233.91,233.85,6.77333777]
[1738374003062,0.03,233.91,233.83,6.77333777]
[1738374006985,0.03,233.91,233.85,6.77333777]
[1738374007186,0.03,233.91,233.87,6.77333777]
[1738374008275,0.03,233.91,233.85,6.77333777]
[1738374015467,0.03,233.91,233.87,6.77333777]
[1738374016888,0.03,233.91,233.89,6.77333777]
[1738374018088,0.03,233.91,233.88,6.77333777]
[1738374019879,0.03,233.91,233.89,6.77333777]
[1738374020077,0.03,233.91,233.9,6.77333777]
[1738374021194,0.03,233.91,233.9,11.68975592]
[1738374021989,0.03,233.91,233.9,11.04863777]
[1738374027610,0.03,233.91,233.9,6.77333777]
[1738374031687,0.03,233.91,233.9,11.04863777]
[1738374041017,1.5275,234.02,234.01,6.77333777]
[1738374041718,1.5275,234.02,233.97,6.77333777]
[1738374041900,1.5275,234.02,233.95,6.77333777]
[1738374042705,1.5275,234.02,233.97,6.77333777]
[1738374043919,1.5275,234.02,233.99,6.77333777]
[1738374045819,1.5275,234.02,234.01,6.77333777]
[1738374046200,0.03,234.04,234.01,6.77333777]
[1738374046400,0.03,234.04,234.03,6.77333777]
[1738374048112,0.03,234.04,234.02,6.77333777]
[1738374048523,0.03,234.04,233.99,6.77333777]
[1738374048721,0.03,234.04,233.97,6.77333777]
[1738374049306,0.03,234.04,234.01,6.77333777]
[1738374051825,0.03,234.04,233.99,6.77333777]
[1738374052015,1.653,234.03,233.97,6.77333777]
[1738374053544,1.653,234.03,233.99,6.77333777]
[1738374054342,1.653,234.01,233.91,0.063]
[1738374054510,13.41184853,233.99,233.91,0.063]
[1738374054710,13.41184853,233.97,233.91,0.063]
[1738374054936,13.41184853,233.95,233.91,0.063]
[1738374055143,1.653,233.94,233.91,0.063]
[1738374060916,1.653,233.94,233.92,6.77333777]
[1738374065617,1.0,234.07,233.92,6.77333777]
[1738374065618,1.6877,234.04,233.92,11.04813777]
[1738374065819,1.6877,234.04,233.99,6.77333777]
[1738374071063,1.6877,234.04,233.97,6.77333777]
[1738374071264,1.6877,234.04,233.95,6.77333777]
[1738374071265,13.41184853,234.03,233.95,6.77333777]
[1738374071543,2.11603097,234.04,233.96,6.77333777]
[1738374071728,1.6877,234.04,234.0,6.77333777]
[1738374074553,1.6877,234.04,233.98,6.77333777]
[1738374078448,0.03,234.04,234.02,6.77333777]
[1738374078843,0.03,234.04,234.02,7.41403703]
[1738374079025,0.03,234.04,234.03,2.94]
[1738374080147,0.03,234.04,234.03,7.2129]
[1738374082042,0.03,234.04,234.03,8.2129]
[1738374085149,0.03,234.04,234.03,7.2129]
[1738374086853,0.03,234.04,234.03,8.2129]
[1738374087763,0.03,234.04,234.03,7.2129]
[1738374088951,0.03,234.04,234.03,8.2129]
[1738374089163,0.03,234.04,234.03,7.2129]
[1738374089367,0.03,234.04,234.03,8.2129]
[1738374089968,0.03,234.04,234.03,7.2129]
[1738374093273,0.03,234.04,234.03,13.98623777]
[1738374093448,1.5732,234.14,234.06,20.0]
[1738374093768,1.5732,234.14,234.09,6.77333777]
[1738374097667,1.5732,234.14,234.09,11.04513777]
[1738374099872,0.03,234.14,234.12,20.0]
[1738374100047,0.03,234.14,234.13,7.41369211]
[1738374100448,0.03,234.18,234.17,13.41184853]
[1738374100659,0.03,234.18,234.17,24.76538592]
[1738374101271,0.03,234.18,234.17,9.71333777]
[1738374102758,0.03,234.18,234.17,6.77333777]
[1738374105779,0.03,234.18,234.17,7.77333777]
[1738374106881,0.03,234.18,234.17,6.77333777]
[1738374110574,0.03,234.18,234.17,11.04373777]
[1738374111763,0.03,234.18,234.17,12.04373777]
[1738374113388,0.03,234.26,234.2,20.0]
[1738374113688,0.03,234.26,234.25,6.77333777]
[1738374114865,0.03,234.26,234.25,11.04223777]
[1738374117404,0.03,234.26,234.25,6.77333777]
[1738374117716,0.03,234.26,234.24,6.77333777]
[1738374117870,0.03,234.26,234.23,6.77333777]
[1738374119071,0.03,234.26,234.2,6.77333777]
[1738374120295,6.6534,234.25,234.2,6.77333777]
[1738374120470,6.6534,234.25,234.18,6.77333777]
[1738374120670,1.5759,234.24,234.18,6.77333777]
[1738374121889,13.41184853,234.23,234.18,6.77333777]
[1738374122084,13.41184853,234.2,234.13,6.77333777]
[1738374122287,6.6534,234.07,234.02,6.6534]
[1738374122504,1.0,234.05,233.91,6.83633777]
[1738374122794,14.41184853,234.02,233.92,0.063]
[1738374122996,13.41184853,234.0,233.92,0.063]
[1738374124195,13.41184853,233.98,233.92,0.063]
[1738374124379,13.41184853,233.96,233.92,0.063]
[1738374124691,0.42833097,233.95,233.92,0.063]
[1738374125279,6.6534,233.93,233.91,0.063]
[1738374125479,0.42833097,233.92,233.91,0.063]
[1738374125791,6.6534,233.93,233.91,0.063]
[1738374126094,6.6534,233.93,233.83,10.54237863]
[1738374126473,13.41184853,233.92,233.83,10.54237863]
[1738374127279,0.42833097,233.91,233.81,10.54237863]
[1738374131225,0.42833097,233.91,233.8,10.60537863]
[1738374131787,0.42833097,233.91,233.8,0.063]
[1738374135811,0.42833097,233.91,233.81,10.54237863]
[1738374136507,13.41184853,233.9,233.81,10.54237863]
[1738374136693,13.41184853,233.88,233.8,0.063]
[1738374137089,13.8401795,233.92,233.8,0.063]
[1738374137411,13.41184853,233.9,233.8,0.063]
[1738374137612,13.41184853,233.88,233.8,0.063]
[1738374137921,13.41184853,233.86,233.8,0.063]
[1738374138108,13.41184853,233.84,233.8,0.063]
[1738374138624,13.41184853,233.82,233.8,0.063]
[1738374138804,6.0021,233.81,233.8,0.063]
[1738374140821,19.41394853,233.81,233.8,0.063]
[1738374142118,19.41394853,233.81,233.78,0.063]
[1738374142331,13.41184853,233.8,233.78,0.063]
[1738374142512,15.02514853,233.79,233.78,0.063]
[1738374147627,1.6133,233.79,233.72,10.54237863]
[1738374148007,1.6133,233.79,233.74,10.54237863]
[1738374148201,1.6133,233.79,233.71,0.063]
[1738374149203,13.41184853,233.78,233.71,0.063]
[1738374150007,13.41184853,233.78,233.71,6.81651027]
[1738374151236,1.6133,233.79,233.75,6.75351027]
[1738374151528,1.6133,233.79,233.72,6.75351027]
[1738374152927,1.6133,233.79,233.71,0.063]
[1738374155425,1.6133,233.79,233.72,6.75351027]
[1738374155733,1.6133,233.79,233.74,6.75351027]
[1738374156825,1.6133,233.79,233.72,6.75351027]
[1738374157024,1.6522,233.85,233.75,6.75351027]
[1738374157216,1.6522,233.85,233.77,6.75351027]
[1738374157813,1.6522,233.85,233.79,6.75351027]
[1738374158037,1.6522,233.85,233.81,6.75351027]
[1738374159718,1.6522,233.85,233.8,10.5432276]
[1738374161444,0.03,233.91,233.84,10.5432276]
[1738374161648,0.03,233.91,233.86,10.5432276]
[1738374163630,0.03,233.91,233.84,14.8195276]
[1738374164521,0.03,233.91,233.86,10.5432276]
[1738374164721,0.03,233.91,233.87,10.5432276]
[1738374167237,0.03,233.91,233.87,14.8189276]
[1738374169031,0.03,233.91,233.89,10.5432276]
[1738374169355,0.03,233.91,233.87,10.5432276]
[1738374170453,0.03,233.91,233.87,14.8189276]
[1738374171338,0.03,233.91,233.85,10.5432276]
[1738374171724,0.03,233.91,233.83,10.5432276]
[1738374172128,0.03,233.91,233.86,10.5432276]
[1738374172550,0.03,233.91,233.86,14.8192276]
[1738374174551,0.03,233.91,233.86,14.8822276]
[1738374175552,0.03,233.91,233.89,20.0]
[1738374175756,0.03,233.91,233.9,10.5432276]
[1738374177040,0.03,233.91,233.9,14.8185276]
[1738374178945,0.03,233.91,233.9,15.8185276]
[1738374179254,0.03,233.91,233.9,16.45952789]
[1738374179834,0.03,233.91,233.9,12.65554201]
[1738374180946,0.03,233.91,233.9,11.65554201]
[1738374181263,0.03,233.91,233.9,11.01454172]
[1738374181763,0.03,233.91,233.9,20.0]
[1738374182058,0.03,233.91,233.89,6.73924172]
[1738374182939,0.03,233.91,233.9,24.2753]
[1738374183738,0.03,233.91,233.9,28.2153]
[1738374186058,0.03,233.91,233.9,42.62714853]
[1738374186233,1.5314,234.02,233.94,20.0]
[1738374186440,1.5314,234.02,234.0,6.73924172]
[1738374188562,1.5314,234.02,233.94,6.73924172]
[1738374188766,6.2938,234.04,233.85,6.73924172]
[1738374188767,8.1258,234.0,233.85,6.73924172]
[1738374188948,13.8401795,233.99,233.83,6.73924172]
[1738374189756,13.8401795,233.99,233.84,10.53970551]
[1738374190146,13.8401795,233.99,233.86,10.60270551]
[1738374192073,13.8401795,233.99,233.86,0.063]
[1738374194269,13.41184853,233.95,233.86,0.063]
[1738374194461,0.42833097,233.94,233.86,0.063]
[1738374195473,13.8401795,233.95,233.86,0.063]
[1738374197570,0.03,233.94,233.86,0.063]
[1738374198275,1.0,233.89,233.79,10.53970551]
[1738374198469,13.41184853,233.85,233.71,0.063]
[1738374198665,13.41184853,233.83,233.71,0.063]
[1738374198873,13.41184853,233.81,233.71,0.063]
[1738374199370,13.41184853,233.83,233.71,10.60270551]
[1738374199572,13.41184853,233.83,233.73,10.53970551]
[1738374199754,13.41184853,233.83,233.75,10.53970551]
[1738374201473,13.41184853,233.83,233.73,10.53970551]
[1738374202553,1.5304,233.84,233.75,10.53970551]
[1738374202877,1.5304,233.84,233.77,10.53970551]
[1738374203877,1.5304,233.84,233.79,10.53970551]
[1738374204181,1.5304,233.84,233.81,10.53970551]
[1738374205973,1.5304,233.92,233.81,10.53970551]
[1738374206555,1.5304,233.92,233.82,10.53970551]
[1738374206761,1.95873097,233.92,233.8,10.53970551]
[1738374206967,13.41184853,233.91,233.78,14.81720551]
[1738374207174,13.41184853,233.91,233.78,10.53970551]
[1738374208181,13.41184853,233.91,233.78,14.81710551]
[1738374208985,1.95873097,233.92,233.78,14.81710551]
[1738374208986,1.5304,233.92,233.78,14.81710551]
[1738374209164,1.5304,233.92,233.8,10.53970551]
[1738374209367,1.5304,233.92,233.82,10.53970551]
[1738374209573,1.5304,233.92,233.83,4.2766]
[1738374209791,1.5304,233.92,233.82,10.53970551]
[1738374209961,1.5304,233.92,233.82,14.81640551]
[1738374210477,1.5304,233.92,233.82,10.53970551]
[1738374211101,1.5304,233.92,233.81,0.063]
[1738374211270,13.41184853,233.91,233.81,0.063]
[1738374212360,1.5304,233.92,233.81,0.063]
[1738374212876,13.41184853,233.91,233.81,0.063]
[1738374213395,13.41184853,233.89,233.81,0.063]
[1738374213695,13.41184853,233.87,233.81,0.063]
[1738374213868,13.41184853,233.85,233.81,0.063]
[1738374214070,13.41184853,233.83,233.81,0.063]
[1738374214277,15.02944853,233.82,233.81,0.063]
[1738374215485,1.6176,233.82,233.81,0.063]
[1738374218773,1.6176,233.87,233.81,0.063]
[1738374219286,1.6176,233.87,233.81,10.60270551]
[1738374219686,13.41184853,233.85,233.81,0.063]
[1738374220589,8.53083097,233.84,233.71,0.063]
[1738374221479,13.41184853,233.83,233.71,10.60270551]
[1738374221670,13.8401795,233.82,233.81,0.063]
[1738374222271,8.1025,233.84,233.81,0.063]
[1738374225885,1.6176,233.84,233.81,0.063]
[1738374227309,1.6476,233.92,233.82,10.53970551]
[1738374227512,1.6476,233.92,233.86,10.53970551]
[1738374227713,1.6476,233.92,233.81,0.063]
[1738374227714,1.6476,233.92,233.84,10.53970551]
[1738374227883,1.6476,233.92,233.82,10.53970551]
[1738374228216,13.8401795,233.91,233.81,0.063]
[1738374228711,13.41184853,233.91,233.81,0.063]
[1738374230211,1.6476,233.92,233.82,10.53970551]
[1738374231876,0.03,233.92,233.86,10.53970551]
[1738374234521,0.03,233.92,233.86,14.81570551]
[1738374234697,0.03,233.92,233.86,10.53970551]
[1738374235014,0.03,233.92,233.88,10.53970551]
[1738374235306,0.03,233.92,233.9,10.53970551]
[1738374238133,0.03,233.92,233.9,14.81490551]
[1738374241428,0.03,233.92,233.91,3.1]
[1738374241639,0.03,233.92,233.91,8.01611437]
[1738374243208,0.03,233.92,233.91,21.4279629]
[1738374244614,0.03,233.92,233.91,32.96766841]
[1738374245032,0.03,233.94,233.92,14.41184853]
[1738374245227,0.0001,233.94,233.93,12.18058113]
[1738374245410,1.5405,234.06,233.97,20.0]
[1738374245612,1.5405,234.06,233.99,10.53970551]
[1738374248838,1.5405,234.06,233.98,10.53970551]
[1738374250139,1.5405,234.06,233.97,10.53970551]
[1738374250839,1.5405,234.06,233.96,10.53970551]
[1738374253041,1.5405,234.06,233.97,10.53970551]
[1738374253743,1.5405,234.06,233.97,6.73809401]
[1738374254041,1.5405,234.06,233.95,6.73809401]
[1738374254337,1.96883097,234.06,233.95,6.73809401]
[1738374255236,1.5405,234.06,233.95,6.73809401]
[1738374255740,1.5405,234.06,233.94,10.53058702]
[1738374256040,1.5405,234.06,233.99,10.53058702]
[1738374257742,1.5705,234.06,233.99,10.53058702]
[1738374259253,1.5705,234.06,234.01,10.53058702]
[1738374259552,1.5705,234.06,234.05,10.53058702]
[1738374259553,0.03,234.06,234.05,10.53058702]
[1738374261946,0.03,234.06,234.02,10.53058702]
[1738374262325,0.03,234.06,234.01,10.53058702]
[1738374263143,0.03,234.06,233.92,15.03494853]
[1738374263144,0.03,234.06,233.97,10.53058702]
[1738374263340,13.44184853,234.06,233.97,10.53058702]
[1738374264323,0.03,234.06,234.01,10.53058702]
[1738374265225,0.03,234.06,234.03,10.53058702]
[1738374266334,0.03,234.06,234.05,10.53058702]
[1738374268747,0.03,234.06,234.05,24.5830075]
[1738374271327,0.03,234.15,234.09,20.0]
[1738374271548,0.03,234.15,234.14,10.53058702]
[1738374275548,0.03,234.15,234.12,10.53058702]
[1738374276972,0.03,234.15,234.13,10.53058702]
[1738374277587,0.03,234.15,234.12,10.53058702]
[1738374281682,0.03,234.15,234.14,10.53058702]
[1738374281882,0.03,234.15,234.12,10.53058702]
[1738374282678,0.03,234.15,234.13,10.53058702]
[1738374285590,0.03,234.15,234.09,10.53058702]
[1738374285757,0.03,234.15,234.07,10.53058702]
[1738374285958,0.03,234.15,234.08,10.53058702]
[1738374287774,0.03,234.15,234.08,6.73179467]
[1738374288088,13.44184853,234.15,234.04,6.73179467]
[1738374288259,1.6527,234.12,234.04,6.73179467]
[1738374288787,1.6527,234.12,234.05,0.063]
[1738374292371,13.8401795,234.11,234.05,0.063]
[1738374297079,14.8401795,234.11,234.05,0.063]
[1738374299681,13.8401795,234.11,234.05,0.063]
[1738374299873,14.8401795,234.11,234.05,0.063]
[1738374300183,13.8401795,234.11,234.05,0.063]
[1738374304696,14.8401795,234.11,234.05,0.063]
[1738374304886,14.41184853,234.09,233.98,10.52166301]
[1738374305199,13.41184853,234.07,233.98,10.52166301]
[1738374305381,13.41184853,234.05,233.98,10.52166301]
[1738374306395,0.42833097,234.06,233.98,10.52166301]
[1738374306396,13.41184853,234.08,233.98,10.52166301]
[1738374306596,0.42833097,234.07,233.98,10.52166301]
[1738374307109,1.6037,234.05,233.96,10.52166301]
[1738374307291,13.41184853,234.03,233.96,10.52166301]
[1738374309300,13.8401795,234.02,233.94,0.063]
[1738374312009,13.8401795,234.02,233.96,0.063]
[1738374313501,13.41184853,234.02,233.96,0.063]
[1738374314508,82.6,234.03,233.96,6.80349974]
[1738374314813,82.6,234.03,233.98,6.74049974]
[1738374315003,82.6,234.03,233.96,6.80349974]
[1738374316713,82.6,234.03,233.98,6.74049974]
[1738374316891,1.6037,234.05,233.98,6.74049974]
[1738374318509,1.6037,234.05,234.01,6.74049974]
[1738374318921,1.6037,234.05,233.99,6.74049974]
[1738374325021,1.6037,234.05,233.99,6.80349974]
[1738374327122,1.6037,234.05,234.0,6.74049974]
[1738374327322,1.6366,234.11,234.03,6.74049974]
[1738374327510,1.6366,234.11,234.04,6.74049974]
[1738374328012,1.6366,234.11,234.02,6.74049974]
[1738374328417,1.6366,234.11,234.01,6.74049974]